Cogmind - Beta 11 @@@ ROGUE MODE // 2022.04.18 @ 20:57:27 Player: Momo Result: Destroyed by H-55 Commando with Gauss Rifle Performance ------------- Evolutions (1) 500 Regions Visited (5) 1000 Robots Destroyed (22) 110 Value Destroyed (584) 584 Prototype IDs (5) 100 Alien Tech Used (0) 0 Bonus (347) 347 TOTAL SCORE: 2641 Bonus ------- Follower Combat Kills 65 Aligned with FarCom 300 Friendly Fire -18 Cogmind --------- Core Integrity 0/400 Matter 16/300 Energy 100/100 System Corruption 1% Temperature Cool (0) Movement Core (50) Location -9/Exiles Parts ------- > --- POWER (1) -------- (None) > --- PROPULSION (3) --- (None) > --- UTILITY (3) ------ (None) > --- WEAPON (2) ------- (None) > --- INVENTORY (5) ---- Experimental Sensor Array Heavy EM Shotgun YOLO Cannon Longsword +1 Peak State ------------ > --- POWER ------------ Improved Ion Engine > --- PROPULSION ------- Improved Treads Advanced Treads Advanced Treads > --- UTILITY ---------- Huge Storage Unit Experimental Sensor Array Advanced Targeting Computer > --- WEAPON ----------- Assault Cannon Bore Cannon > --- INVENTORY -------- Fission Core Light Treads Advanced Treads Advanced Treads Wheel Improved Heat Sink Large Storage Unit Salvage Targeting Computer Cloak of Protection Heavy EM Shotgun Heavy EM Shotgun YOLO Cannon Improved Assault Rifle Rocket Launcher Longsword +1 [Rating: 37] Favorites ----------- Power Deuterium Engine Engine Deuterium Engine Power Core Fission Core Propulsion Advanced Treads Treads Advanced Treads Leg Aluminum Leg Utility Small Storage Unit Device Improved Sensor Array Storage Small Storage Unit Processor Advanced Targeting Computer Protection Hardened Medium Armor Plating Weapon Heavy EM Shotgun Energy Gun Heavy EM Shotgun Energy Cannon Beam Cannon Ballistic Gun Light Assault Rifle Ballistic Cannon Assault Cannon Launcher Rocket Launcher Build | -11 -10 -10 -9 -9 -9 ------- Run | Scr Mat Min Mat Min Exi Slots Evolved 2 | . . . 2 . . Power . | . . . . . . Propulsion 1 | . . . 1 . . Utility 1 | . . . 1 . . Weapon . | . . . . . . Parts Attached 48 | 6 . 8 11 6 17 Power 4 | 1 . 1 1 . 1 Engine 3 | 1 . 1 1 . . Core 1 | . . . . . 1 Reactor . | . . . . . . Propulsion 11 | 2 . 3 2 1 3 Treads 10 | 2 . 2 2 1 3 Leg 1 | . . 1 . . . Wheel . | . . . . . . Hover . | . . . . . . Flight . | . . . . . . Utility 17 | 1 . 2 3 3 8 Device 4 | . . 1 . . 3 Storage 7 | 1 . . 2 1 3 Processor 2 | . . . 1 . 1 Hackware . | . . . . . . Protection 4 | . . 1 . 2 1 Artifact . | . . . . . . Weapon 16 | 2 . 2 5 2 5 Energy Gun 6 | . . . 4 1 1 Energy Cannon 1 | . . 1 . . . Ballistic Gun 4 | 2 . . . 1 1 Ballistic Cannon 4 | . . 1 1 . 2 Launcher 1 | . . . . . 1 Special Weapon . | . . . . . . Impact Weapon . | . . . . . . Slashing Weapon . | . . . . . . Piercing Weapon . | . . . . . . Special Melee Weapon . | . . . . . . Unidentified Prototypes 5 | . . . 2 1 2 Parts Lost 13 | . . 2 1 1 9 Power 2 | . . . . . 2 Propulsion 5 | . . 1 . . 4 Utility 3 | . . 1 . 1 1 Weapon 3 | . . . 1 . 2 Highest Loss Streak 8 | . . 1 1 1 8 To Critical Strikes 4 | . . . . . 4 Average Slot Usage (%) 96 | . 85 99 95 99 91 Engine 11 | . 14 14 11 11 7 Treads 28 | . 28 25 30 33 31 Leg 1 | . . 2 . . . Device 1 | . . 2 . . 1 Storage 12 | . 14 14 11 11 10 Processor 5 | . . . 9 11 11 Protection 9 | . . 11 11 10 7 Energy Gun 9 | . . . 15 22 15 Energy Cannon 6 | . . 13 3 . . Ballistic Gun 2 | . 28 . . . 1 Ballistic Cannon 6 | . . 13 3 . 1 Naked Turns 3 | . . . . . 3 Heaviest Build 98 | 13 13 30 43 98 98 Greatest Support 67 | 40 40 42 66 67 67 Greatest Overweight (x) 2 | . . 2 1 1 1 Average Overweight (x) . | . . . . . . Largest Inventory Capacity 25 | 8 8 8 15 25 25 Average Capacity 11 | 7 8 8 9 18 20 Most Carried 17 | . 4 8 14 17 17 Average Carried 9 | . 3 7 8 15 14 Final Capacity 25 | 8 8 8 15 25 5 Final Carried 17 | . 4 8 14 17 5 Class Distribution -------------------- 100% | Mutant Dominant Class ---------------- Mutant | -10/Materials Mutant | -10/Mines Mutant | -9/Materials Mutant | -9/Mines Mutant | -9/Exiles Resources | -11 -10 -10 -9 -9 -9 ----------- Run | Scr Mat Min Mat Min Exi Matter Collected 731 | 123 . 392 177 32 7 Remotely . | . . . . . . Salvage Created 819 | . 51 119 417 170 62 Parts 51 | . 8 4 25 12 2 Haulers Intercepted 1 | . . . 1 . . Recyclers Shooed 1 | . . . . 1 . Parts Field Recycled . | . . . . . . Retrieved Matter . | . . . . . . Parts Self-Destructed . | . . . . . . Prevented . | . . . . . . Kills | -11 -10 -10 -9 -9 -9 ------- Run | Scr Mat Min Mat Min Exi Combat Hostiles Destroyed 32 | . 3 9 9 2 9 Guns 13 | . 3 . 6 2 2 Cannons 12 | . . 9 3 . . AOE 7 | . . . . . 7 Classes Destroyed 8 | . 1 3 3 1 . Worker 1 | . . . 1 . . Hauler 1 | . . . 1 . . Recycler 1 | . . . . 1 . Swarmer 7 | . 3 . 4 . . Grunt 5 | . . 2 2 . 1 Sentry 5 | . . . 3 2 . Demolisher 1 | . . 1 . . . Assembled 13 | . . 6 . . 7 Best Kill Streak 7 | . 3 3 2 2 7 Combat Bots Only 7 | . 3 3 2 2 7 Max Kills in Single Turn 4 | . 1 1 1 1 4 Gunslinging . | . . . . . . Exploded 4 | . . . . . 4 Melee . | . . . . . . Uniques/NPCs Destroyed 1 | . . . . . 1 8R-AWN (-9/Exiles) Combat | -11 -10 -10 -9 -9 -9 -------- Run | Scr Mat Min Mat Min Exi Damage Taken 2597 | . 59 726 141 122 1549 Core 552 | . 7 129 28 15 373 Absorbed by Shields . | . . . . . . Core Remaining (%) 72 | 100 . 45 . . . Volleys Fired 88 | . 5 33 23 4 23 Largest 2 | . 2 2 2 2 2 Hottest 104 | . 40 104 104 100 101 Shots Fired 149 | . 10 58 40 8 33 Gun 61 | . 10 . 28 8 15 Cannon 85 | . . 58 12 . 15 Launcher 3 | . . . . . 3 Special . | . . . . . . Kinetic 72 | . 10 33 9 . 20 Thermal 28 | . . 25 3 . . Explosive 3 | . . . . . 3 Electromagnetic 46 | . . . 28 8 10 Robot Hit Streak 13 | . 3 7 10 11 13 Robot Miss Streak 6 | . 3 6 2 1 3 Penetration Max . | . . . . . . Secondary Targets . | . . . . . . Shots Hit Robots 84 | . 6 24 23 7 24 Core Hits 58 | . 4 11 16 5 22 Critical Kills . | . . . . . . Critical Parts Destroyed . | . . . . . . Critical Strikes . | . . . . . . Melee Attacks . | . . . . . . Impact . | . . . . . . Slashing . | . . . . . . Piercing . | . . . . . . Sneak Attacks . | . . . . . . Combat Hostiles . | . . . . . . Follow-up Attacks . | . . . . . . Damage Inflicted 2046 | . 69 532 508 194 743 Guns 635 | . 69 . 360 115 91 Cannons 839 | . . 532 95 . 212 Explosions 572 | . . . 53 79 440 Melee . | . . . . . . Ramming . | . . . . . . Kinetic 774 | . 69 339 77 . 289 Thermal 393 | . . 193 71 79 50 Explosive 390 | . . . . . 390 Electromagnetic 489 | . . . 360 115 14 Impact . | . . . . . . Slashing . | . . . . . . Piercing . | . . . . . . Highest Corruption 1 | . . . . . 1 Average Corruption 1 | . . . . . 1 Corruption Purged . | . . . . . . Corruption Blocked . | . . . . . . Overload Shots . | . . . . . . Overflow Damage 85 | . . 23 6 15 41 Projectiles 29 | . . 23 6 . . Explosions 56 | . . . . 15 41 Melee . | . . . . . . Knockbacks 8 | . . 3 . . 5 Impact . | . . . . . . Kinetic 8 | . . 3 . . 5 Secondary . | . . . . . . Self-Inflicted Damage 63 | . . . 28 35 . Shots 2 | . . . 1 1 . Rammed . | . . . . . . Targets Rammed . | . . . . . . Kicked . | . . . . . . Crushed . | . . . . . . Highest Temperature 342 | . . 342 192 153 132 Average Temperature 101 | . . 132 65 64 56 Received Heat Transfer 105 | . . 51 21 27 6 Effects 5 | . . 5 . . . Energy Bleed 2 | . . 2 . . . Interference 2 | . . 2 . . . Damage (minor) 1 | . . 1 . . . Siege Activations . | . . . . . . Robots Corrupted . | . . . . . . Combat Hostiles . | . . . . . . Parts Fried 2 | . . . 1 1 . Impact Corruptions . | . . . . . . Robots Melted . | . . . . . . Combat Hostiles . | . . . . . . Parts Melted 2 | . . . 2 . . Heat Transferred 694 | . . 407 137 100 50 Parts Sabotaged . | . . . . . . Parts Stolen . | . . . . . . Parts Stripped . | . . . . . . Power Chain Reactions 3 | . . . 1 1 1 Missiles Intercepted . | . . . . . . Alert | -11 -10 -10 -9 -9 -9 ------- Run | Scr Mat Min Mat Min Exi Peak Influence 315 | . 99 82 315 150 . Initial 85 | . . 38 . 85 . Average 74 | . 60 30 170 96 . Maximum Alert Level 1 | . . . 1 . . Low Security (%) 94 | 100 100 100 70 100 . Level 1 5 | . . . 29 . . Level 2 . | . . . . . . Level 3 . | . . . . . . Level 4 . | . . . . . . Level 5 . | . . . . . . High Security . | . . . . . . Max Security . | . . . . . . Squads Dispatched 2 | . 1 . 1 . . Investigation 1 | . . . 1 . . Extermination . | . . . . . . Reinforcement 1 | . 1 . . . . Assault . | . . . . . . Garrison . | . . . . . . Intercept . | . . . . . . Searches Triggered . | . . . . . . Construction Impeded . | . . . . . . Haulers Reinforced . | . . . . . . Active Scanning Responses . | . . . . . . Cargo Convoy Interrupts . | . . . . . . Stealth | -11 -10 -10 -9 -9 -9 --------- Run | Scr Mat Min Mat Min Exi Distress Signals 1 | . . . 1 . . Communications Jammed . | . . . . . . Distress Signals . | . . . . . . Times Spotted 71 | . 6 14 21 2 28 Peak Tracking Total 15 | . 3 3 4 2 15 Tactical Retreats 6 | . . 2 . . 4 Traps | -11 -10 -10 -9 -9 -9 ------- Run | Scr Mat Min Mat Min Exi Traps Triggered 1 | . . . 1 . . Indirectly . | . . . . . . Trap Hack Attempts . | . . . . . . Triggered . | . . . . . . Disarmed . | . . . . . . Reprogrammed . | . . . . . . Reused . | . . . . . . Traps Extracted . | . . . . . . Installed . | . . . . . . Triggered . | . . . . . . Machines | -11 -10 -10 -9 -9 -9 ---------- Run | Scr Mat Min Mat Min Exi Machines Disabled 6 | . . 2 1 . 3 Max in Single Turn 1 | . . 1 1 . 1 Machines Sabotaged . | . . . . . . Garrisons Compromised . | . . . . . . Overloaded Fab Kills . | . . . . . . Hacking | -11 -10 -10 -9 -9 -9 --------- Run | Scr Mat Min Mat Min Exi Machines Accessed 6 | . 1 1 4 . . Terminals 5 | . 1 . 4 . . Fabricators . | . . . . . . Repair Stations . | . . . . . . Recycling Units . | . . . . . . Scanalyzers . | . . . . . . Garrison Access . | . . . . . . Total Hacks 14 | . 2 1 11 . . Successful 10 | . 1 1 8 . . Failed 4 | . 1 . 3 . . Catastrophic . | . . . . . . Database Lockouts . | . . . . . . Manual 5 | . 2 . 2 . 1 Terminals 13 | . 2 . 11 . . Fabricators . | . . . . . . Repair Stations . | . . . . . . Recycling Units . | . . . . . . Scanalyzers . | . . . . . . Garrison Access . | . . . . . . Terminal Hacks 8 | . . 1 7 . . Open Door 1 | . . 1 . . . Branch Access Points 1 | . . . 1 . . Locate Traps 2 | . . . 2 . . Registered Components 1 | . . . 1 . . Zone Layout 3 | . . . 3 . . Fabricator Hacks . | . . . . . . Repair Station Hacks . | . . . . . . Recycling Unit Hacks . | . . . . . . Scanalyzer . | . . . . . . Garrison Access Hacks . | . . . . . . Unauthorized Hacks 2 | . 1 . 1 . . Terminals 2 | . 1 . 1 . . Botnet 2 | . 1 . 1 . . Fabricators . | . . . . . . Repair Stations . | . . . . . . Recycling Units . | . . . . . . Scanalyzers . | . . . . . . Garrison Access . | . . . . . . Data Cores Recovered . | . . . . . . Used . | . . . . . . Hacking Detections 5 | . 1 . 4 . . Full Trace Events 1 | . . . 1 . . Feedback Events . | . . . . . . Feedback Blocked . | . . . . . . Robot Schematics Acquired . | . . . . . . Robots Built . | . . . . . . Authchips . | . . . . . . Time . | . . . . . . Total Robot Build Rating . | . . . . . . Part Schematics Acquired . | . . . . . . Parts Built . | . . . . . . Authchips . | . . . . . . Time . | . . . . . . Total Part Build Rating . | . . . . . . Parts Repaired . | . . . . . . Time . | . . . . . . Parts Recycled . | . . . . . . Recycled Matter . | . . . . . . Retrieved Matter . | . . . . . . Retrieved Components . | . . . . . . Parts Scanalyzed . | . . . . . . Part Schematics Acquired . | . . . . . . Parts Damaged . | . . . . . . Bothacking | -11 -10 -10 -9 -9 -9 ------------ Run | Scr Mat Min Mat Min Exi Used RIF Installer . | . . . . . . Robots Hacked . | . . . . . . Non-combat . | . . . . . . Combat . | . . . . . . Robot Hacks Applied . | . . . . . . Relay Couplers Released . | . . . . . . Fabnet Peak Effective % . | . . . . . . Robots Rewired . | . . . . . . Allies Hacked . | . . . . . . Hacks Repelled . | . . . . . . Allies | -11 -10 -10 -9 -9 -9 -------- Run | Scr Mat Min Mat Min Exi Total Allies 3 | . . 3 . . . Largest Group 3 | . . 3 3 . . Highest-Rated Group 40 | . . 40 40 . . Highest-Rated Ally 16 | . . 16 16 . . Total Orders . | . . . . . . Ally Attacks 33 | . . 13 20 . . Total Damage 362 | . . 87 275 . . Kills 8 | . . 2 6 . . Allies Corrupted . | . . . . . . Allies Melted . | . . . . . . Intel | -11 -10 -10 -9 -9 -9 ------- Run | Scr Mat Min Mat Min Exi Robot Analysis Total . | . . . . . . Derelict Logs Recovered 2 | . . 1 . 1 . Drone Launches . | . . . . . . Drone Recoveries . | . . . . . . Exploration | -11 -10 -10 -9 -9 -9 ------------- Run | Scr Mat Min Mat Min Exi Turns Passed 3261 | 52 196 1373 545 609 486 Spaces Moved 1568 | 29 110 605 269 344 211 Core 4 | 2 . . . . 2 Treads 1466 | 27 110 507 269 344 209 Legs 98 | . . 98 . . . Wheels . | . . . . . . Hover . | . . . . . . Flight . | . . . . . . Fastest Speed 50 | 50 160 152 145 145 50 Average Speed 183 | 152 160 206 164 167 184 Slowest Speed 260 | 160 160 260 240 230 230 Overloaded Moves . | . . . . . . Propulsion Burnouts . | . . . . . . Robots Hopped . | . . . . . . Cave-ins Triggered . | . . . . . . Exploration Rate (%) 46 | 5 21 97 34 74 49 Regions Visited 5 Branch Regions 3 Pre-discovered Areas 1 | . . 1 . . . Known Exits Taken 1 | . . . 1 . . Unknown Exits Taken 4 | 1 1 1 . 1 . Scrap Searched 2 | . . 1 . 1 . Spaces Dug 6 | . . . 6 . . Terrain Destroyed 24 | . . 10 9 3 2 Melee . | . . . . . . Projectile 16 | . . 10 6 . . AOE 8 | . . . 3 3 2 Terrain Rammed . | . . . . . . Walls Destroyed . | . . . . . . Machines Disabled . | . . . . . . Actions | -11 -10 -10 -9 -9 -9 --------- Run | Scr Mat Min Mat Min Exi Total 1802 | 34 121 670 338 367 272 Wait 30 | . 3 8 3 6 10 Move 1563 | 28 109 604 268 343 211 Hop . | . . . . . . Pick Up 38 | . 4 9 16 5 4 Fast Attach 18 | 6 . 3 6 2 1 Attach 10 | . . 2 1 . 7 Detach 3 | . . 1 1 . 1 Swap 21 | . . 3 5 4 9 Drop 31 | . . 7 15 3 6 Fire 88 | . 5 33 23 4 23 Melee . | . . . . . . Ram . | . . . . . . Kick . | . . . . . . Crush . | . . . . . . Escape Stasis . | . . . . . . Rewire . | . . . . . . Trap . | . . . . . . Miscellaneous . | . . . . . . Route ------- -11/Scrapyard -10/Materials -10/Mines (discovered 2 exits: *Mat x2) -9/Materials (discovered 2 exits: *Min / Sto) -9/Mines (discovered 2 exits: [*Mat] / *Exi) -9/Exiles History --------- Turn | Location | Event 35 | -11/Scrapyard | Discovered new exit (range 12) 53 | -11/Scrapyard | Entered Materials 234 | -10/Materials | Discovered new exit (range 9) 249 | -10/Materials | Entered Mines 254 | -10/Mines | Met a Derelict who couldn't figure out how to use a Trap Extractor 324 | -10/Mines | Build established: Mutant 450 | -10/Mines | Assembled infested the area 455 | -10/Mines | Assisted by a Guerilla fighting off Assembled 718 | -10/Mines | Core integrity fell below 50% 772 | -10/Mines | Learned location of Zion (-7) 798 | -10/Mines | Discovered new exit (range 2) 808 | -10/Mines | Assisted by bots powering up and referring to "LRC-V3" 1069 | -10/Mines | Discovered new exit (range 11) 1622 | -10/Mines | Entered Materials 1622 | -9/Materials | Accompanied by 3 allies 1622 | -9/Materials | Evolved 2 slots: Propulsion x1, Utility x1 1942 | -9/Materials | Identified exit to Mines 1942 | -9/Materials | Identified exit to Storage 2167 | -9/Materials | Entered Mines 2185 | -9/Mines | Met a Derelict bent on vengeance 2193 | -9/Mines | Learned Materials garrison access intel 2219 | -9/Mines | Discovered new exit (range 11) 2438 | -9/Mines | Found a damaged Exp. Sensor Array with a note attached 2446 | -9/Mines | Found Prototype Device 2571 | -9/Mines | Received a Rocket Launcher from a helpful Derelict 2766 | -9/Mines | Deemed a non-threat by the Exiles lab entrance 2766 | -9/Mines | Discovered new exit (range 5) 2776 | -9/Mines | Entered Exiles 2832 | -9/Exiles | Met 8R-AWN 2873 | -9/Exiles | Met EX-HEX 2922 | -9/Exiles | Met EX-BIN 2938 | -9/Exiles | Aligned with FarCom system 2940 | -9/Exiles | Given EX-Vault access code 2976 | -9/Exiles | Opened EX-Vault 2984 | -9/Exiles | Found Prototype Device 2984 | -9/Exiles | Identified Cloak of Protection 2997 | -9/Exiles | Found Prototype Slashing Weapon 3001 | -9/Exiles | Found Prototype Energy Cannon 3055 | -9/Exiles | Warned to stay clear of 0b10 Research branches 3067 | -9/Exiles | Exiles lab attacked by MAIN.C 3099 | -9/Exiles | Attacked by the Exiles 3125 | -9/Exiles | Identified Exp. Sensor Array 3131 | -9/Exiles | Destroyed 7 combat bots 3200 | -9/Exiles | Core integrity fell below 50% 3209 | -9/Exiles | Lost 8 parts (2p3n1u2w) 3212 | -9/Exiles | Destroyed 8R-AWN 3259 | -9/Exiles | Released all parts (6) 3262 | -9/Exiles | Core integrity fell below 20% 3262 | -9/Exiles | Destroyed by H-55 Commando with Gauss Rifle Last Messages --------------- 03207_ Penetrated by HV Slug. 03207_ HV Slug penetrates Wall. 03209_ The unstable cave ceiling collapses. 03209_ Slug penetrates 8R-AWN. 03212_ 8R-AWN destroyed. 03214_ Acquired 7 matter. 03226_ Adv. Treads destroyed. 03253_ Slug penetrates Wall. 03257_ G-34 Mercenary destroyed. 03258_ Penetrated by Slug. 03258_ Components damaged. 03259_ Released Adv. Targeting Computer. 03259_ Released Lgt. Treads. 03259_ Released Adv. Treads. 03259_ Released Lrg. Storage Unit. 03259_ Released Salvage Targeting Computer. 03259_ Released Imp. Assault Rifle. 03260_ Dropped Wheel. 03261_ Acquired Prototype Slashing Weapon. 03262_ Penetrated by Slug. Map ----- +----------------------------------------------------+ | ????????????????????????????????"""""?# #???## | | ???????????????????????????????"""" ## #????? | | ??????????????????????????????#""X" #????? | | ??????????????????????????????#" #????? | | ??????????????????????????????#" ## #????? | | ??????????????????????????????#""""""?# #?#### | | ???????????????????????????????#"###??# #?#""" | | ??????????????????????????????????????# #?#""" | | ??????????????????????????????????????# #?#""" | | ?????????????????????????????????????## ###"" | | ?????????????????????????????????????#" | | ?????????????????????????????????????#" | | ?????????????????????????????????????#" | | ?????????????????????????????????????#" | | ??????????????????????#########??????#" | | ??????????????????????# """;#??????#" | | ??????????????????????#"" """#???????## | | ??????????????????????#"" #? #?????# | | ??????????????????????#"" #?? #????#" "X" | | ??????????????????????#"" "#??? #???# """ | | ??????????????????????# ""#???# #??#" """"" | | ??????????????????????#" ![""#????# ### ###### | | ??????????????????????###!%####????#"# #????? | | ??????????????????????#?#=]##"####### " #????? | | ???????????????"""#####X#=p#"#;# " " ##???? | | ?????????? !@p "" ##??? | | ?????????? =h "% #### | | ?????????? hlgg g" % | | ???????????# g | | ???????????### h ] | | ?????????????## ! %* | | ??????????????## h=%% ! % | | ???????????????##" % *%=%*% !! | | ????????????????#""" % [%=% =% | | ????????????????#" [%! %######" | | ?????????????????" % =""##????# ## | | ?????????????????"" %g="""##???????# | | ?????????????????? !%g"""#?????????? # | | ?????????????????? ""????????????## " | | ???????????????????? #??????????????"" | | ???????????????????? ????????????????? | | ????????????????????? ???????????????? | | ????????????????????? ??????????????????? | | ?????????????????????? ??????????????????? | | ???????????????????????????????????????????? | | ?????????????????????????????????????????????" | | ??????????????????????????????????????????????? " | | ?????????????????????????????????????????????????? | | ?????????????????????????????????????????????????? | | ?????????????????????????????????????????????????? | +----------------------------------------------------+ Best States ------------- Heat Dissipation 42 Energy Generation 18 Energy Capacity 310 Matter Stores 300 Matter Capacity 300 Sight Range 16 Robot Scan Range 15 Terrain Scan Density 10 Armor Coverage 225 Evasion (%) 50 Targeting Accuracy 8 Recoil Reduction 3 Salvage Targeting 1 Item Schematics ----------------- None Robot Schematics ------------------ None Fabricated ------------ Nothing Alien Tech Used ----------------- None Achievements -------------- None Challenges ------------ None Game ------ Seed ImpactVariableInterrupter Manual? 0 Play Time 00:25:38 Cumulative 256.8 hours Start 2022.04.18 @ 20:29:33 End 2022.04.18 @ 20:57:27 Sessions 1 Manual Loads 0 Difficulty Rogue Special Mode None Game No. 130 Rogue 126 Adventurer 0 Explorer 4 Win Type - Total 15 Types 4/0/2/3/1/2/3/0/0 Lore% 75 Gallery% 80 Achievement% 73 Wizard Run 0 Options --------- ASCII 0 Keyboard 0 Movement Mouse Keybinds 0 Fullscreen 1 Font 18/SmallcapsGlow Map View 76x50 Tactical HUD 1 Map Filters NONE Filters NONE Steam 1 RUN: 733ce030-d927-42ee-b36d-4ba34cd0b646